Workbook

Sheet 2.03
A1: MẪU BIỂU BÁO CÁO DỰ KIẾN NGUỒN VỐN VAY ODA, VAY ƯU ĐÃI NƯỚC NGOÀI CỦA ĐỊA PHƯƠNG GIAI ĐOẠN 2021-2025
A2: (Kèm theo công văn số 1425/STC-QLNS ngày 30/7/2021)
X3: Đơn vị: USD/triệu đồng
A4: STT | B4: Tên Dự án | C4: Nhà tài trợ | D4: Số vốn | E4: Cơ chế tài chính | G4: Tình trạng | H4: DỰ KIẾN GIẢI NGÂN TRONG KỲ KẾ HOẠCH 2021-2025
H5: Kế hoạch năm 2021 | L5: Dự kiến năm 2022 | P5: Dự kiến năm 2023 | T5: Dự kiến năm 2024 | X5: Dự kiến năm 2025
E6: Cấp phát (%) | F6: Vay lại (%) | H6: Tổng | I6: Cấp phát | K6: Vay lại | L6: Tổng | M6: Cấp phát | O6: Vay lại | P6: Tổng | Q6: Cấp phát | S6: Vay lại | T6: Tổng | U6: Cấp phát | W6: Vay lại | X6: Tổng | Y6: Cấp phát | AA6: Vay lại
I7: XDCB | J7: HCSN | M7: XDCB | N7: HCSN | Q7: XDCB | R7: HCSN | U7: XDCB | V7: HCSN | Y7: XDCB | Z7: HCSN
A8: 1 | B8: 2 | C8: 3 | D8: 4 | E8: 5 | F8: 6 | G8: 7 | H8: 8 | I8: 9 | J8: 10 | K8: 11 | L8: 12 | M8: 13 | N8: 14 | O8: 15 | P8: 16 | Q8: 17 | R8: 18 | S8: 19 | T8: 20 | U8: 21 | V8: 22 | W8: 23 | X8: 24 | Y8: 25 | Z8: 26 | AA8: 27
B9: Tổng số | H9: =SUM(H10,H13) -> 612,291 | I9: =SUM(I10,I13) -> 365,026 | J9: 0 | K9: 247,265 | L9: 1,323,548 | M9: 738,934 | N9: 0 | O9: 584,614 | P9: =SUM(P10,P13) -> 942,089 | Q9: =SUM(Q10,Q13) -> 533,788 | R9: =SUM(R10,R13) -> 0 | S9: =SUM(S10,S13) -> 408,301 | T9: 1,036,298 | U9: 587,167 | V9: 0 | W9: 449,131 | X9: 251,300 | Y9: 28,600 | Z9: 0 | AA9: 222,700
A10: I | B10: Các dự án đang giải ngân | H10: =SUM(H11:H12) -> 391,566 | I10: =SUM(I11:I12) -> 210,526 | J10: 0 | K10: 181,040 | L10: 405,671 | M10: 210,671 | N10: 0 | O10: 195,000 | P10: =SUM(P11:P12) -> 0 | Q10: =SUM(Q11:Q12) -> 0 | R10: =SUM(R11:R12) -> 0 | S10: =SUM(S11:S12) -> 0 | T10: 0 | U10: 0 | V10: 0 | W10: 0 | X10: 0 | Y10: 0 | Z10: 0 | AA10: 0
A11: 1 | B11: Dự án Tăng cường quản lý đất đai và cơ sở dữ liệu đất đai tỉnh Vĩnh Long | C11: WB | D11: 34,603 | E11: 70.00% | F11: 30.00% | H11: =SUM(I11:K11) -> 18,396 | I11: 12,000 | K11: 6,396 | L11: =SUM(M11:O11) -> 2,695 | M11: 2,695 | O11: 0
A12: 2 | B12: Dự án Mở rộng nâng cấp đô thị Việt Nam - Tiểu dự án Thành phố Vĩnh Long, tỉnh Vĩnh Long | C12: WB | D12: 729,062 | E12: 55.76% | F12: 44.24% | H12: =SUM(I12:K12) -> 373,170 | I12: 198,526 | K12: 174,644 | L12: =SUM(M12:O12) -> 402,976 | M12: 207,976 | O12: 195,000
A13: II | B13: Các dự án đề xuất mới và dự kiến giải ngân trong thời gian tới | H13: =SUM(H14:H15) -> 220,725 | I13: =SUM(I14:I15) -> 154,500 | J13: 0 | K13: 66,225 | L13: =SUM(L14:L15) -> 917,877 | M13: 528,263 | N13: 0 | O13: 389,614 | P13: =SUM(P14:P15) -> 942,089 | Q13: =SUM(Q14:Q15) -> 533,788 | R13: =SUM(R14:R15) -> 0 | S13: =SUM(S14:S15) -> 408,301 | T13: 1,036,298 | U13: 587,167 | V13: 0 | W13: 449,131 | X13: 251,300 | Y13: 28,600 | Z13: 0 | AA13: 222,700
A14: 1 | B14: Dự án Đầu tư trang thiết bị Bệnh viện đa khoa tỉnh Vĩnh Long | C14: Chính phủ Áo | D14: 282,156 | E14: 70.00% | F14: 30.00% | G14: Dự án đã được phê duyệt chủ trương đầu tư và phê duyệt dự án đầu tư | H14: =SUM(I14:K14) -> 220,725 | I14: 154,500 | K14: 66,225 | L14: =SUM(M14:O14) -> 61,431 | M14: 43,000 | O14: 18,431
A15: 2 | B15: Dự án Phát triển đô thị và tăng cường khả năng thích ứng biến đổi khí hậu thành phố Vĩnh Long, tỉnh Vĩnh Long | C15: WB và Chính phủ Hà Lan | D15: 3,425,780 | E15: 50.00% | F15: 50.00% | G15: Dự án đã được phê duyệt chủ trương đầu tư và phê duyệt dự án đầu tư | H15: =SUM(I15:K15) -> 0 | L15: =SUM(M15:O15) -> 856,446 | M15: 485,263 | O15: 371,183 | P15: =Q15+R15+S15 -> 942,089 | Q15: 533,788 | S15: 408,301 | T15: =U15+V15+W15 -> 1,036,298 | U15: 587,167 | W15: 449,131 | X15: =Y15+Z15+AA15 -> 251,300 | Y15: 28,600 | AA15: 222,700

Sheet Sheet2

Sheet Sheet3
